bitfinex/quotes_SOLUSD_20240615
["timestamp","ask_amount","ask_price","bid_price","bid_amount"]
[1718422653028,5.1319,144.2,144.17,5.4727]
[1718422653213,7.6978,144.2,144.18,2.5661]
[1718422653415,2.5659,144.2,144.18,7.6985]
[1718422653625,2.5659,144.2,144.18,2.5661]
[1718422653811,8.2459,144.2,144.18,7.6985]
[1718422654008,5.68,144.2,144.18,12.831]
[1718422654225,31.3376,144.21,144.18,12.831]
[1718422654406,31.3376,144.21,144.18,15.397]
[1718422654619,31.3376,144.21,144.19,2.566]
[1718422654927,13.3773,144.21,144.19,2.566]
[1718422655505,8.2458,144.21,144.19,2.566]
[1718422656531,8.2458,144.21,144.19,7.698]
[1718422660546,8.2458,144.21,144.19,15.3961]
[1718422660720,5.68,144.21,144.2,2.5658]
[1718422660919,8.2457,144.21,144.19,15.396]
[1718422661348,8.2457,144.21,144.19,7.6979]
[1718422661646,8.2457,144.21,144.19,15.396]
[1718422661934,2.5657,144.21,144.19,15.396]
[1718422662120,5.68,144.21,144.2,2.5658]
[1718422664238,8.2457,144.21,144.19,25.6602]
[1718422664741,5.68,144.21,144.2,2.5658]
[1718422665453,8.2457,144.21,144.19,25.6602]
[1718422665753,5.68,144.21,144.2,2.5658]
[1718422666346,8.2457,144.21,144.19,7.6979]
[1718422666640,5.68,144.21,144.2,2.5658]
[1718422666833,105.68,144.21,144.12,16.5576]
[1718422667036,105.68,144.21,144.16,7.6996]
[1718422667037,5.68,144.17,144.16,7.6996]
[1718422667240,7.6977,144.2,144.17,17.9647]
[1718422667432,5.68,144.19,144.18,2.5661]
[1718422667940,5.68,144.19,144.18,7.6985]
[1718422668331,5.68,144.19,144.18,2.5661]
[1718422670329,8.246,144.19,144.18,2.5661]
[1718422671228,5.68,144.19,144.18,2.5661]
[1718422671426,8.246,144.19,144.18,2.5661]
[1718422671630,5.68,144.19,144.18,2.5662]
[1718422671931,13.3782,144.19,144.17,7.6987]
[1718422672337,2.5662,144.18,144.17,2.5662]
[1718422672542,2.5662,144.18,144.17,2.7362]
[1718422672736,31.3407,144.19,144.17,2.7362]
[1718422672939,8.2462,144.18,144.17,2.7362]
[1718422673432,8.2462,144.18,144.12,16.5576]
[1718422673433,5.68,144.18,144.12,16.5576]
[1718422673632,8.2467,144.16,144.14,15.4013]
[1718422673835,8.2467,144.16,144.15,2.5667]
[1718422674347,7.6995,144.17,144.15,7.7002]
[1718422674554,8.2465,144.17,144.16,2.5665]
[1718422674730,2.5663,144.18,144.17,2.5664]
[1718422674936,5.68,144.18,144.17,7.6992]
[1718422675135,13.3784,144.19,144.17,7.6992]
[1718422676148,2.5662,144.18,144.17,2.5664]
[1718422676955,31.3408,144.19,144.17,2.5664]
[1718422677134,5.68,144.18,144.17,2.5664]
[1718422677842,12.8323,144.17,144.15,2.5666]
[1718422678039,7.6995,144.17,144.15,7.7001]
[1718422678238,13.3795,144.17,144.15,7.7001]
[1718422678430,8.2465,144.17,144.16,2.5665]
[1718422678646,2.5665,144.17,144.16,2.5665]
[1718422681360,13.3789,144.18,144.16,7.6996]
[1718422681737,13.3789,144.18,144.16,15.3993]
[1718422682044,13.3788,144.18,144.16,7.6996]
[1718422682248,2.5664,144.17,144.16,2.5665]
[1718422682947,8.2464,144.17,144.15,25.6668]
[1718422684370,8.2464,144.17,144.16,2.5665]
[1718422684854,5.68,144.17,144.16,2.5665]
[1718422685040,8.2464,144.17,144.16,2.5665]
[1718422685960,2.5671,144.13,144.11,7.7021]
[1718422686261,2.5671,144.13,144.08,7.7036]
[1718422686262,2.5677,144.1,144.08,7.7036]
[1718422686464,12.8376,144.11,144.08,23.1113]
[1718422686769,5.68,144.09,144.08,25.6793]
[1718422686942,2.5674,144.12,144.1,7.7027]
[1718422687142,5.68,144.11,144.1,7.7027]
[1718422687342,5.68,144.11,144.1,15.4056]
[1718422687867,5.68,144.11,144.1,2.5675]
[1718422688165,2.5676,144.1,144.08,7.7037]
[1718422688364,31.3551,144.11,144.09,2.5678]
[1718422688663,8.2476,144.11,144.09,7.7034]
[1718422688838,5.68,144.11,144.1,2.5676]
[1718422689443,5.68,144.11,144.1,7.7029]
[1718422689852,5.68,144.11,144.1,15.4058]
[1718422690154,5.68,144.11,144.1,7.7029]
[1718422691047,5.68,144.11,144.1,2.5676]
[1718422691741,5.68,144.11,144.1,7.7029]
[1718422692348,5.68,144.11,144.1,15.4058]
[1718422693394,15.403,144.13,144.11,2.5674]
[1718422693548,8.2471,144.13,144.12,2.5672]
[1718422693737,5.68,144.13,144.11,23.1069]
[1718422693936,5.68,144.13,144.09,10.2706]
[1718422693937,8.2473,144.12,144.09,10.2706]
[1718422694173,8.2473,144.12,144.11,2.5674]
[1718422695361,8.2473,144.12,144.1,25.676]
[1718422695663,5.68,144.11,144.1,25.676]
[1718422697679,5.68,144.11,144.1,15.4055]
[1718422697852,5.68,144.11,144.1,25.6761]
[1718422698369,5.68,144.11,144.1,2.5675]
[1718422698971,8.2474,144.11,144.1,2.5675]
[1718422699783,2.5674,144.11,144.09,25.6773]
[1718422699966,5.68,144.1,144.09,25.6775]
[1718422700389,2.5679,144.09,144.07,23.113]
[1718422700682,5.68,144.08,144.07,2.5681]
[1718422700915,25.6772,144.1,144.08,2.5679]
[1718422701053,5.68,144.09,144.08,2.5679]
[1718422701258,8.2478,144.09,144.07,25.6815]
[1718422701458,5.68,144.09,144.08,2.568]
[1718422701765,5.68,144.1,144.09,7.7033]
[1718422702463,5.68,144.1,144.09,2.5678]
[1718422702797,8.2477,144.1,144.08,25.6794]
[1718422702960,5.68,144.09,144.08,25.6794]
[1718422704375,25.6749,144.11,144.09,2.5678]
[1718422704575,5.68,144.1,144.08,23.1116]
[1718422704783,5.68,144.1,144.09,2.5678]
[1718422704990,8.2476,144.1,144.09,2.5678]
[1718422705189,8.2476,144.1,144.08,25.6794]
[1718422705390,13.3829,144.1,144.08,7.7036]
[1718422705881,13.3829,144.1,144.08,2.5678]
[1718422706202,2.5678,144.09,144.08,2.5678]
[1718422706384,5.68,144.09,144.07,25.6807]
[1718422706567,5.68,144.09,144.08,2.568]
[1718422706994,5.68,144.09,144.08,7.704]
[1718422707397,5.68,144.09,144.08,2.568]
[1718422707608,8.2478,144.09,144.07,25.6807]
[1718422708313,5.68,144.09,144.08,2.568]
[1718422708596,8.2478,144.09,144.07,25.6807]
[1718422709009,8.2478,144.09,144.07,23.1127]
[1718422709187,13.3835,144.09,144.07,7.7042]
[1718422709571,13.3835,144.09,144.07,2.5681]
[1718422709802,28.7905,144.09,144.07,2.5681]
[1718422710096,31.3584,144.09,144.07,2.5681]
[1718422710309,25.6775,144.1,144.08,2.568]
[1718422710487,2.5678,144.09,144.08,2.568]
[1718422710697,23.1097,144.1,144.08,2.568]
[1718422710698,25.6774,144.1,144.08,2.568]
[1718422711006,2.5677,144.1,144.08,25.6797]
[1718422711174,7.703,144.1,144.08,7.7038]
[1718422711376,15.406,144.1,144.08,2.5678]
[1718422711876,2.5678,144.09,144.08,2.5678]
[1718422712197,2.5678,144.09,144.08,0.17]
[1718422712382,7.7034,144.09,144.08,0.17]
[1718422712766,2.5678,144.09,144.08,0.17]
[1718422713402,23.1092,144.1,144.08,2.738]
[1718422713694,2.5678,144.09,144.08,2.738]
[1718422713892,23.1065,144.12,144.09,23.11]
[1718422714073,13.3821,144.12,144.1,7.7028]
[1718422714389,8.2474,144.11,144.09,17.9744]
[1718422714574,13.3823,144.11,144.09,7.7031]
[1718422714772,5.1353,144.1,144.08,7.8737]
[1718422714981,2.5678,144.09,144.08,0.17]
[1718422715599,2.5678,144.09,144.08,2.738]
[1718422715917,13.3832,144.1,144.08,7.874]
[1718422716373,8.2477,144.1,144.08,7.874]
[1718422717069,5.68,144.1,144.09,2.5678]
[1718422717592,5.68,144.1,144.09,15.4069]
[1718422718299,5.68,144.1,144.09,25.6782]
[1718422720889,5.68,144.11,144.1,25.6762]
[1718422722402,7.702,144.12,144.1,7.7027]
[1718422722722,5.68,144.11,144.1,7.7027]
[1718422722896,5.68,144.11,144.1,15.4056]
[1718422723614,5.68,144.11,144.1,25.6762]
[1718422725715,5.68,144.11,144.1,7.7027]
[1718422726217,5.68,144.11,144.1,15.4056]
[1718422726598,5.68,144.11,144.1,25.6762]
[1718422727116,5.68,144.11,144.1,7.7027]
[1718422728429,5.68,144.11,144.09,23.1098]
[1718422728717,5.68,144.11,144.1,2.5676]
[1718422728895,5.68,144.11,144.1,15.4058]
[1718422729526,5.68,144.11,144.1,25.6764]
[1718422729898,2.5674,144.12,144.11,2.5674]
[1718422730217,8.2474,144.12,144.1,23.1088]
[1718422730713,8.2474,144.12,144.1,25.6763]
[1718422730911,2.5674,144.11,144.1,2.5675]
[1718422731112,13.3819,144.12,144.1,2.5675]
[1718422731504,8.2473,144.12,144.1,15.4057]
[1718422731695,5.68,144.11,144.1,5.1353]
[1718422731897,5.68,144.11,144.1,7.7028]
[1718422732414,5.68,144.11,144.1,15.4057]
[1718422734132,5.68,144.11,144.07,2.5681]
[1718422734133,10.271,144.1,144.07,2.5681]
[1718422734299,25.6755,144.11,144.09,2.5678]
[1718422734618,5.68,144.1,144.09,7.7034]
[1718422734828,5.68,144.1,144.09,15.4069]
[1718422735013,5.68,144.1,144.09,7.7034]
[1718422735209,7.7021,144.12,144.1,2.5675]
[1718422735414,15.404,144.12,144.1,2.5675]
[1718422735732,5.68,144.11,144.1,2.5675]
[1718422736227,8.2474,144.11,144.1,2.5675]
[1718422736430,8.2474,144.11,144.09,25.6778]
[1718422737429,13.3824,144.11,144.09,7.703]
[1718422737930,5.68,144.1,144.09,7.703]
[1718422738312,2.5674,144.11,144.1,2.5676]
[1718422738610,8.2474,144.11,144.1,2.5676]
[1718422738812,8.2474,144.11,144.09,25.6778]
[1718422739332,8.2474,144.11,144.09,7.703]
[1718422740739,8.2471,144.14,144.12,7.7017]
[1718422740912,28.7825,144.14,144.11,23.1063]
[1718422741104,31.3496,144.14,144.11,23.1063]
[1718422741310,7.7014,144.13,144.11,7.7021]
[1718422741510,8.2472,144.13,144.11,7.7021]
[1718422741711,13.3814,144.13,144.11,2.5674]
[1718422742221,21.0827,144.13,144.11,2.5674]
[1718422742422,8.2473,144.12,144.1,15.5756]
[1718422743023,8.2473,144.12,144.11,2.5674]
[1718422743226,5.68,144.12,144.11,2.5674]
[1718422743825,8.2473,144.12,144.1,7.8727]
[1718422744139,5.68,144.12,144.11,2.5674]
[1718422745028,5.68,144.12,144.11,7.7023]
[1718422747117,5.68,144.12,144.11,2.5674]
[1718422747318,5.68,144.12,144.11,7.7023]
[1718422748416,5.68,144.12,144.11,15.4047]
[1718422748726,2.567,144.14,144.12,7.7018]
[1718422748932,7.7006,144.15,144.13,2.567]
[1718422749116,5.68,144.14,144.13,7.7013]
[1718422749320,106.3729,144.2,144.1,15.272]
[1718422749514,5.68,144.16,144.13,12.8352]
[1718422749838,2.5664,144.17,144.15,15.4003]
[1718422750154,2.5664,144.17,144.15,25.6671]
[1718422750345,2.5664,144.17,144.15,23.1006]
[1718422750516,25.6612,144.19,144.17,2.5663]
[1718422750716,5.68,144.18,144.17,25.6638]
[1718422750916,5.68,144.18,144.17,7.6991]
[1718422751240,8.2462,144.18,144.17,2.5663]
[1718422751539,5.68,144.18,144.17,2.5663]
[1718422751857,8.2462,144.18,144.16,23.0987]
[1718422752017,8.2462,144.18,144.17,2.5664]
[1718422752218,2.5662,144.18,144.17,2.5664]
[1718422752519,8.2462,144.18,144.17,2.5664]
[1718422752736,8.2462,144.18,144.16,23.0987]
[1718422752935,8.2462,144.18,144.17,2.5664]
[1718422753142,5.68,144.18,144.17,2.5664]
[1718422753353,17.9596,144.22,144.14,5.85]
[1718422753516,15.3943,144.21,144.19,2.5659]
[1718422753725,2.5657,144.21,144.19,5.1319]
[1718422753937,7.6971,144.21,144.19,7.6978]
[1718422755319,2.5657,144.21,144.19,7.6978]
[1718422756029,7.6967,144.22,144.2,7.6975]
[1718422756235,8.2455,144.22,144.2,7.6975]
[1718422756536,2.5657,144.21,144.2,2.5658]
[1718422756739,13.3767,144.22,144.2,2.5658]
[1718422756940,31.3354,144.22,144.19,23.0937]
[1718422757145,2.5657,144.21,144.19,23.0937]
[1718422757320,31.3354,144.22,144.2,2.5658]
[1718422758931,8.2456,144.22,144.2,7.6975]
[1718422759129,8.2456,144.22,144.2,12.8293]
[1718422759436,8.2456,144.22,144.2,7.6974]
[1718422761227,21.0732,144.22,144.2,2.5657]
[1718422762147,13.3767,144.22,144.2,2.5657]
[1718422763133,21.0733,144.22,144.2,2.5657]
[1718422763860,13.3767,144.22,144.2,2.5657]
[1718422764164,8.2456,144.22,144.2,7.6974]
[1718422764535,8.2456,144.22,144.2,15.395]
[1718422765033,13.3763,144.23,144.21,2.5657]
[1718422765233,0.33333334,144.22,144.21,2.5657]
[1718422766452,0.33333334,144.22,144.2,25.6585]
[1718422766453,2.89883334,144.22,144.2,25.6585]
[1718422766667,0.33333334,144.22,144.21,15.5642]
[1718422766954,0.33333334,144.22,144.21,25.827]
[1718422767148,0.33333334,144.22,144.21,25.997]
[1718422767353,0.33333334,144.22,144.21,26.337]
[1718422768835,0.33333334,144.22,144.21,32.017]
[1718422777847,0.33333334,144.22,144.21,26.337]
[1718422778063,0.33333334,144.22,144.21,32.017]
[1718422779949,8.2445,144.28,144.26,7.6941]
[1718422780269,13.3734,144.28,144.26,7.6941]
[1718422780680,21.0667,144.28,144.26,2.5646]
[1718422781848,0.864721,144.29,144.28,25.6444]
[1718422782065,0.864721,144.29,144.28,2.5644]
[1718422782271,3.429021,144.29,144.27,25.6452]
[1718422782654,8.557621,144.29,144.27,7.6934]
[1718422782849,2.5644,144.28,144.27,2.5644]
[1718422783571,2.5644,144.28,144.26,25.647]
[1718422783749,2.5644,144.28,144.26,23.0824]
[1718422783950,2.5644,144.28,144.27,2.5646]
[1718422784257,32.187621,144.29,144.27,2.5646]
[1718422784466,14.237721,144.29,144.27,7.6938]
[1718422784788,3.429121,144.29,144.28,2.5644]
[1718422785270,3.429121,144.29,144.27,15.3874]
[1718422785479,3.429121,144.29,144.28,2.5644]
[1718422785993,0.864721,144.29,144.27,25.6457]
[1718422786163,3.429021,144.29,144.28,0.17]
[1718422786362,0.864721,144.29,144.28,7.8633]
[1718422787289,0.864721,144.29,144.28,26.1544]
[1718422787488,0.864721,144.29,144.28,26.3244]
[1718422788796,0.864721,144.29,144.28,32.0044]
[1718422789790,0.864721,144.29,144.28,26.3244]
[1718422790789,0.864721,144.29,144.28,32.0044]
[1718422793568,0.864721,144.29,144.28,26.3244]
[1718422800614,0.864721,144.29,144.28,2.5644]
[1718422801431,0.864721,144.29,144.28,7.6933]
[1718422801600,0.864721,144.29,144.28,15.3866]
[1718422801799,0.864721,144.29,144.28,25.6444]
[1718422802024,0.864721,144.29,144.28,25.8144]
[1718422803908,0.864721,144.29,144.28,31.4944]
[1718422804109,0.864721,144.29,144.28,31.6644]
[1718422804324,0.864721,144.29,144.28,32.0044]
[1718422806301,0.864721,144.29,144.28,31.4944]
[1718422806504,6.544721,144.29,144.21,15.9193]
[1718422806702,8.2445,144.28,144.27,2.5646]
[1718422806903,0.864721,144.29,144.28,2.5644]
[1718422807119,0.864721,144.29,144.28,25.6444]
[1718422808030,0.864721,144.29,144.28,25.8144]
[1718422811124,0.864721,144.29,144.28,26.1544]
[1718422811307,0.864721,144.29,144.28,26.3244]
[1718422813218,0.864721,144.29,144.28,25.8144]
[1718422814319,0.864721,144.29,144.28,25.9844]
[1718422814511,6.3745,144.39,144.28,25.9844]
[1718422814512,8.2427,144.38,144.28,26.36]
[1718422814735,7.688,144.38,144.36,2.5629]
[1718422815419,5.68,144.37,144.33,10.2536]
[1718422815621,7.6893,144.36,144.34,2.5633]
[1718422815924,15.3784,144.36,144.34,2.5633]
[1718422816313,7.6893,144.36,144.34,2.5633]
[1718422816509,13.3693,144.36,144.34,2.5633]
[1718422817242,23.0694,144.35,144.32,7.6909]
[1718422817423,8.2434,144.34,144.32,2.5636]
[1718422817622,8.2434,144.34,144.32,7.691]
[1718422818242,5.68,144.34,144.33,2.5635]
[1718422818835,5.68,144.34,144.33,7.6906]
[1718422819230,13.3693,144.36,144.34,2.5633]
[1718422819443,2.5629,144.37,144.35,2.5631]
[1718422819646,21.0571,144.37,144.35,2.5631]
[1718422819849,8.243,144.36,144.34,7.6897]
[1718422820446,5.68,144.35,144.34,7.6897]
[1718422820649,8.2432,144.35,144.33,2.5634]
[1718422820832,8.2432,144.35,144.33,7.6904]
[1718422821145,5.68,144.34,144.33,2.5634]
[1718422821529,8.2434,144.34,144.32,25.6367]
[1718422821732,5.68,144.34,144.33,2.5635]
[1718422823150,7.6897,144.35,144.33,2.5635]
[1718422823334,5.68,144.34,144.33,2.5635]
[1718422823531,2.5636,144.33,144.31,25.638]
[1718422823743,5.68,144.33,144.32,2.5637]
[1718422824547,31.3159,144.33,144.31,2.5639]
[1718422824721,5.68,144.32,144.31,2.5639]
[1718422824921,2.5637,144.33,144.31,7.6917]
[1718422825151,8.2437,144.33,144.31,7.6917]
[1718422825736,8.2437,144.33,144.31,15.3834]
[1718422826424,21.0615,144.33,144.31,2.5639]
[1718422828752,13.3708,144.33,144.31,2.5639]
[1718422829129,21.0615,144.33,144.31,2.5639]
[1718422829333,22.7792,144.39,144.3,5.68]
[1718422829533,13.3691,144.36,144.34,7.6899]
[1718422830048,25.6292,144.37,144.35,2.5631]
[1718422830353,5.68,144.36,144.31,5.85]
[1718422830556,5.68,144.34,144.31,7.6915]
[1718422830729,8.2434,144.34,144.32,7.691]
[1718422830926,13.3701,144.34,144.32,7.691]
[1718422831134,13.3701,144.34,144.32,2.5636]
[1718422831357,21.0602,144.34,144.32,2.5636]
[1718422831537,13.3701,144.34,144.32,7.691]
[1718422831738,13.3701,144.34,144.32,2.5636]
[1718422833663,8.2434,144.34,144.32,7.691]
[1718422834660,13.3701,144.34,144.32,7.691]
[1718422834861,10.8067,144.34,144.32,2.5636]
[1718422835068,7.6901,144.34,144.32,2.5636]
[1718422835241,5.68,144.33,144.32,2.5636]
[1718422835440,5.68,144.33,144.32,7.691]
[1718422836863,5.68,144.33,144.32,15.3822]
[1718422837065,123.0647,144.38,144.28,5.68]
[1718422837251,2.5631,144.36,144.34,7.6899]
[1718422837449,5.68,144.35,144.34,7.6899]
[1718422837662,2.5631,144.36,144.34,15.38]
[1718422837853,5.68,144.35,144.34,15.38]
[1718422838276,5.68,144.35,144.34,2.5632]
[1718422838766,2.5631,144.36,144.35,2.5632]
[1718422838962,2.5631,144.36,144.34,7.6899]
[1718422838963,13.3691,144.36,144.34,7.6899]
[1718422839971,8.2431,144.36,144.34,25.6333]
[1718422840141,8.2431,144.36,144.34,7.6898]
[1718422840462,13.3691,144.36,144.34,7.6898]
[1718422840854,7.6891,144.36,144.34,7.6898]
[1718422841168,13.3691,144.36,144.34,7.6898]
[1718422841363,21.0582,144.36,144.34,2.5632]
[1718422841570,2.5632,144.35,144.34,2.5632]
[1718422841864,2.5632,144.35,144.33,25.6344]
[1718422842464,2.5632,144.35,144.34,2.5633]
[1718422842672,2.5632,144.35,144.33,25.6344]
[1718422843051,25.6303,144.36,144.34,2.5633]
[1718422843252,28.7472,144.36,144.34,2.5633]
[1718422843451,2.5632,144.35,144.34,2.5633]
[1718422845051,31.3103,144.36,144.34,2.5633]
[1718422845253,2.5632,144.35,144.34,2.5633]
[1718422845565,22.7792,144.39,144.32,5.68]
[1718422845746,8.2427,144.38,144.36,7.6887]
[1718422845949,8.2427,144.38,144.36,15.3776]
[1718422846774,13.3681,144.38,144.36,2.5628]
[1718422847577,13.3681,144.38,144.36,7.6888]
[1718422847578,7.6881,144.38,144.36,7.6888]
[1718422847742,13.3681,144.38,144.36,7.6888]
[1718422848146,2.5627,144.38,144.36,15.3779]
[1718422848560,2.5627,144.38,144.36,7.6888]
[1718422848761,7.688,144.38,144.36,7.6888]
[1718422849171,2.5627,144.38,144.36,7.6888]
[1718422849351,2.5628,144.37,144.35,25.6306]
[1718422849557,31.3068,144.38,144.36,2.563]
[1718422849945,13.3681,144.38,144.36,2.563]
[1718422851085,21.0561,144.38,144.36,2.563]
[1718422851578,13.3681,144.38,144.36,7.689]
[1718422852374,2.5628,144.38,144.36,15.3781]
[1718422852680,13.3679,144.38,144.36,7.6888]
[1718422853874,8.2426,144.38,144.36,15.3779]
[1718422854073,16.4047,144.39,144.38,2.5626]
[1718422854279,29.7722,144.39,144.37,7.6883]
[1718422854472,5.68,144.38,144.37,7.6883]
[1718422855356,5.68,144.38,144.37,2.5627]
[1718422855554,23.0626,144.39,144.36,23.0662]
[1718422855752,31.3052,144.39,144.37,2.5627]
[1718422856361,2.5626,144.38,144.37,2.5627]
[1718422856770,2.5628,144.37,144.34,10.2528]
[1718422856986,7.6891,144.36,144.34,7.6898]
[1718422857279,2.5631,144.36,144.34,15.3799]
[1718422857470,2.5631,144.36,144.34,7.6898]
[1718422857673,2.5631,144.36,144.34,7.6897]
[1718422857862,13.3692,144.36,144.34,7.6897]
[1718422858177,13.3692,144.36,144.33,17.9439]
[1718422858178,8.2429,144.37,144.36,2.563]
[1718422858572,8.2429,144.37,144.35,25.6317]
[1718422859466,8.2428,144.37,144.36,2.563]
[1718422860378,8.2428,144.37,144.35,25.6317]
[1718422860575,8.2428,144.37,144.36,2.563]
[1718422860764,2.5626,144.39,144.37,2.5627]
[1718422860966,13.3676,144.39,144.37,2.5627]
[1718422861159,7.6876,144.39,144.37,7.6883]
[1718422861358,8.2425,144.39,144.37,25.6279]
[1718422861559,8.2425,144.39,144.37,7.6883]
[1718422861755,13.3675,144.39,144.37,7.6883]
[1718422862280,13.3676,144.39,144.37,7.6883]
[1718422862665,7.6893,144.36,144.34,2.5633]
[1718422862984,15.3784,144.36,144.34,2.5633]
[1718422863356,23.0675,144.36,144.33,23.0711]
[1718422863658,17.9415,144.36,144.34,2.5633]
[1718422863880,7.6893,144.36,144.34,7.69]
[1718422864895,2.5631,144.36,144.35,2.5632]
[1718422865058,2.563,144.36,144.35,2.5632]
[1718422865479,2.563,144.36,144.34,23.0703]
[1718422865683,2.563,144.36,144.35,2.5632]
[1718422865998,7.6888,144.37,144.35,2.5632]
[1718422866295,31.3073,144.38,144.36,2.5629]
[1718422866459,13.3681,144.38,144.36,7.6889]
[1718422866662,2.5628,144.37,144.36,2.5629]
[1718422866889,31.3087,144.37,144.35,2.5631]
[1718422867183,2.563,144.36,144.35,2.5631]
[1718422868161,2.563,144.36,144.34,25.6329]
[1718422868599,31.3088,144.37,144.35,2.5631]
[1718422868772,8.243,144.37,144.35,15.379]
[1718422868976,8.243,144.37,144.36,2.563]
[1718422869177,2.563,144.37,144.36,2.563]
[1718422869785,7.6883,144.38,144.36,7.689]
[1718422870009,8.2428,144.38,144.36,23.067]
[1718422870209,8.2428,144.38,144.37,2.5628]
[1718422871004,8.2428,144.38,144.36,23.067]
[1718422871402,8.2428,144.38,144.36,25.6298]
[1718422871910,7.6877,144.39,144.37,7.6884]
[1718422872087,13.3676,144.39,144.37,5.1255]
[1718422872288,8.2426,144.39,144.38,2.5626]
[1718422872509,5.68,144.39,144.38,2.5626]
[1718422873207,8.2425,144.39,144.38,2.5626]
[1718422873636,8.2425,144.39,144.37,25.628]
[1718422873793,12.8108,144.41,144.39,2.5624]
[1718422873993,2.5623,144.4,144.39,2.5624]
[1718422874310,7.6869,144.4,144.38,7.6875]
[1718422874519,7.6869,144.4,144.38,2.5625]
[1718422874693,2.5623,144.4,144.38,23.064]
[1718422874887,2.5623,144.4,144.38,25.6265]
[1718422875627,2.5623,144.4,144.39,2.5625]
[1718422875918,31.3018,144.41,144.39,2.5625]
[1718422876820,2.5628,144.37,144.36,2.5629]
[1718422877114,2.5631,144.36,144.35,2.5632]
[1718422877316,7.6889,144.37,144.35,2.5632]
[1718422877499,0.33333367,144.36,144.35,15.3792]
[1718422877700,0.33333367,144.36,144.35,25.632]
[1718422878315,0.33333367,144.36,144.35,25.802]
[1718422879607,0.33333367,144.36,144.35,7.6896]
[1718422879814,0.33333367,144.36,144.35,15.3792]
[1718422880911,0.33333367,144.36,144.35,25.632]
[1718422881718,13.70243367,144.36,144.34,7.6899]
[1718422881909,6.01333367,144.36,144.35,2.5632]
[1718422882208,6.01333367,144.36,144.35,15.3792]
[1718422882407,0.33333367,144.36,144.35,25.632]
[1718422883729,0.33333367,144.36,144.35,2.5632]
[1718422884026,6.01333367,144.36,144.35,2.5632]
[1718422884733,6.01333367,144.36,144.35,7.6896]
[1718422885105,0.33333367,144.36,144.35,25.632]
[1718422886208,0.33333367,144.36,144.35,7.6896]
[1718422886417,0.33333367,144.36,144.35,2.5632]
[1718422887703,0.33333367,144.36,144.35,7.6896]
[1718422888730,0.33333367,144.36,144.35,2.5632]
[1718422889222,0.33333367,144.36,144.35,7.6896]
[1718422890336,0.33333367,144.36,144.35,25.632]
[1718422890926,0.33333367,144.36,144.35,7.6896]
[1718422892839,0.33333367,144.36,144.35,2.5632]
[1718422893609,0.33333367,144.36,144.35,7.6896]
[1718422894406,0.33333367,144.36,144.35,15.3792]
[1718422894825,0.33333367,144.36,144.35,7.6896]
[1718422895428,0.33333367,144.36,144.35,2.5632]
[1718422895652,2.89633367,144.36,144.35,2.5632]
[1718422896304,0.33333367,144.36,144.35,2.5632]
[1718422900938,0.33333367,144.36,144.35,7.6896]
[1718422902015,0.33333367,144.36,144.35,25.632]
[1718422905022,0.33333367,144.36,144.35,25.802]
[1718422908522,0.33333367,144.36,144.35,42.0614]